[Event "Late-Titled-Tuesday-Blitz-September-26-2023"]
[Site "Chess.com"]
[Date "2023.09.26"]
[Round "1"]
[White "SpeedofLight0"]
[Black "Ykow"]
[Result "1-0"]
[WhiteElo "3050"]
[BlackElo "2499"]
[TimeControl "180+1"]
[EndTime "14:08:03 PDT"]
[Termination "SpeedofLight0 won by resignation"]

1. Nf3 {[%clk 0:02:59.5]} 1... d5 {[%clk 0:02:58.4]} 2. e3 {[%clk 0:02:58.8]}
2... c5 {[%clk 0:02:57.6]} 3. d4 {[%clk 0:02:57.6]} 3... Nf6 {[%clk 0:02:55.4]}
4. Nbd2 {[%clk 0:02:55.9]} 4... Bf5 {[%clk 0:02:43.7]} 5. dxc5 {[%clk
0:02:54.4]} 5... e6 {[%clk 0:02:42.9]} 6. Nb3 {[%clk 0:02:53.6]} 6... Nc6 {[%clk
0:02:36.7]} 7. Nfd4 {[%clk 0:02:40.8]} 7... Bg6 {[%clk 0:02:35.4]} 8. Bb5 {[%clk
0:02:40.5]} 8... Rc8 {[%clk 0:02:34.6]} 9. O-O {[%clk 0:02:38.6]} 9... e5 {[%clk
0:02:34]} 10. Nf3 {[%clk 0:02:24.1]} 10... Bh5 {[%clk 0:02:29.9]} 11. Be2 {[%clk
0:02:23.7]} 11... Rg8 {[%clk 0:02:22.4]} 12. Bd2 {[%clk 0:02:04.4]} 12... Ne4
{[%clk 0:02:17.5]} 13. Re1 {[%clk 0:01:43.1]} 13... g5 {[%clk 0:02:11.1]} 14.
Bc3 {[%clk 0:00:55.5]} 14... Nxc3 {[%clk 0:01:22.4]} 15. bxc3 {[%clk 0:00:56.4]}
15... Bg6 {[%clk 0:00:58.4]} 16. Bb5 {[%clk 0:00:53.8]} 16... f6 {[%clk
0:00:53.1]} 17. c4 {[%clk 0:00:51.5]} 17... dxc4 {[%clk 0:00:51.4]} 18. Bxc4
{[%clk 0:00:51.4]} 18... Rg7 {[%clk 0:00:51]} 19. Qe2 {[%clk 0:00:49.9]} 19...
Qc7 {[%clk 0:00:46.6]} 20. Red1 {[%clk 0:00:47.8]} 20... Rd8 {[%clk 0:00:43.4]}
21. Bd5 {[%clk 0:00:35.3]} 21... Bh5 {[%clk 0:00:39.9]} 22. Qc4 {[%clk
0:00:33.2]} 22... g4 {[%clk 0:00:38.5]} 23. Nh4 {[%clk 0:00:32.9]} 23... g3
{[%clk 0:00:38.4]} 24. hxg3 {[%clk 0:00:29]} 24... Bxd1 {[%clk 0:00:38.3]} 25.
Rxd1 {[%clk 0:00:29.9]} 25... Be7 {[%clk 0:00:32.3]} 26. Nf5 {[%clk 0:00:29.7]}
26... Rg5 {[%clk 0:00:32.9]} 27. Qe4 {[%clk 0:00:23]} 27... Kf8 {[%clk
0:00:31.4]} 28. Qh4 {[%clk 0:00:21]} 28... h5 {[%clk 0:00:22.1]} 29. e4 {[%clk
0:00:16.9]} 29... Nb4 {[%clk 0:00:20.7]} 30. c4 {[%clk 0:00:14.8]} 30... Bxc5
{[%clk 0:00:18.7]} 31. g4 {[%clk 0:00:13.5]} 31... Nxd5 {[%clk 0:00:13.1]} 32.
cxd5 {[%clk 0:00:14.4]} 32... Bb6 {[%clk 0:00:12.9]} 33. gxh5 {[%clk 0:00:10.2]}
33... Qc2 {[%clk 0:00:12.8]} 34. Rf1 {[%clk 0:00:10.2]} 34... Rxd5 {[%clk
0:00:12.1]} 35. exd5 {[%clk 0:00:06.6]} 35... Rxf5 {[%clk 0:00:12.6]} 36. h6
{[%clk 0:00:06.4]} 36... Kg8 {[%clk 0:00:13]} 37. Qg4+ {[%clk 0:00:05.7]} 37...
Rg5 {[%clk 0:00:13.4]} 38. Qe6+ {[%clk 0:00:06.2]} 38... Kh7 {[%clk 0:00:14.3]}
39. Qxf6 {[%clk 0:00:06.5]} 39... Qg6 {[%clk 0:00:13.3]} 40. Qxg6+ {[%clk
0:00:06.6]} 40... Kxg6 {[%clk 0:00:14.1]} 41. Nd2 {[%clk 0:00:04.6]} 41... e4
{[%clk 0:00:13.2]} 42. Nxe4 {[%clk 0:00:04.4]} 42... Rxd5 {[%clk 0:00:13.5]} 43.
h7 {[%clk 0:00:05.1]} 43... Rd8 {[%clk 0:00:12.7]} 44. Re1 {[%clk 0:00:03.7]}
44... Kxh7 {[%clk 0:00:12.8]} 45. Ng5+ {[%clk 0:00:04.2]} 45... Kg6 {[%clk
0:00:13.2]} 46. Ne6 {[%clk 0:00:04.9]} 46... Rd2 {[%clk 0:00:13.1]} 47. Rf1
{[%clk 0:00:03.8]} 47... Rxa2 {[%clk 0:00:12.3]} 48. g3 {[%clk 0:00:03.6]} 48...
a5 {[%clk 0:00:12]} 49. Kg2 {[%clk 0:00:03.9]} 49... Rb2 {[%clk 0:00:12.2]} 50.
Nf4+ {[%clk 0:00:04]} 50... Kf7 {[%clk 0:00:12]} 51. Kf3 {[%clk 0:00:04.2]}
51... a4 {[%clk 0:00:12.5]} 52. Nd3 {[%clk 0:00:04.7]} 52... Rb3 {[%clk
0:00:12.7]} 53. Ke4 {[%clk 0:00:05.1]} 53... a3 {[%clk 0:00:13.1]} 54. Ra1
{[%clk 0:00:05.6]} 54... Ba7 {[%clk 0:00:12.8]} 55. f4 {[%clk 0:00:05.1]} 55...
b5 {[%clk 0:00:13]} 56. g4 {[%clk 0:00:05.6]} 56... Rc3 {[%clk 0:00:12.6]} 57.
g5 {[%clk 0:00:05.5]} 57... Rc4+ {[%clk 0:00:12.5]} 58. Kf3 {[%clk 0:00:05.7]}
58... b4 {[%clk 0:00:11.8]} 59. Ne5+ {[%clk 0:00:04.9]} 59... Ke6 {[%clk
0:00:11.4]} 60. Nxc4 {[%clk 0:00:05.8]} 60... Kd5 {[%clk 0:00:12.3]} 61. Nxa3
{[%clk 0:00:06.2]} 1-0

[Event "Late-Titled-Tuesday-Blitz-September-26-2023"]
[Site "Chess.com"]
[Date "2023.09.26"]
[Round "1"]
[White "hurricane7791"]
[Black "marik_spb"]
[Result "1-0"]
[WhiteElo "2704"]
[BlackElo "2400"]
[TimeControl "180+1"]
[EndTime "14:08:05 PDT"]
[Termination "hurricane7791 won on time"]

1. d4 {[%clk 0:02:57.4]} 1... Nf6 {[%clk 0:02:59.3]} 2. c4 {[%clk 0:02:57.4]}
2... e6 {[%clk 0:02:58]} 3. Nf3 {[%clk 0:02:57.8]} 3... d5 {[%clk 0:02:56.1]} 4.
Nc3 {[%clk 0:02:58]} 4... Be7 {[%clk 0:02:54.4]} 5. Bf4 {[%clk 0:02:55.4]} 5...
O-O {[%clk 0:02:54]} 6. e3 {[%clk 0:02:55.6]} 6... c5 {[%clk 0:02:51.4]} 7. dxc5
{[%clk 0:02:55.5]} 7... dxc4 {[%clk 0:02:32.9]} 8. Bxc4 {[%clk 0:02:52.9]} 8...
Bxc5 {[%clk 0:02:33.1]} 9. Qxd8 {[%clk 0:02:45]} 9... Rxd8 {[%clk 0:02:28.8]}
10. Ke2 {[%clk 0:02:45.5]} 10... Nc6 {[%clk 0:02:26.8]} 11. Rhd1 {[%clk
0:02:45.8]} 11... Bd7 {[%clk 0:02:22.5]} 12. Rac1 {[%clk 0:02:45.5]} 12... Be8
{[%clk 0:02:21.1]} 13. a3 {[%clk 0:02:36.9]} 13... Rxd1 {[%clk 0:02:13.5]} 14.
Rxd1 {[%clk 0:02:36.7]} 14... Rd8 {[%clk 0:02:14.4]} 15. Rc1 {[%clk 0:02:37.1]}
15... Bd6 {[%clk 0:02:05.9]} 16. Bg5 {[%clk 0:02:30]} 16... h6 {[%clk
0:02:01.1]} 17. Bh4 {[%clk 0:02:29.9]} 17... g5 {[%clk 0:01:59.5]} 18. Bg3
{[%clk 0:02:30.1]} 18... a6 {[%clk 0:01:50.7]} 19. Bd3 {[%clk 0:02:14.6]} 19...
Na5 {[%clk 0:01:37.5]} 20. Bxd6 {[%clk 0:02:07.6]} 20... Rxd6 {[%clk 0:01:38.4]}
21. Ne5 {[%clk 0:02:01.3]} 21... Nb3 {[%clk 0:01:35.5]} 22. Rc2 {[%clk
0:01:48.3]} 22... Nc5 {[%clk 0:01:22.6]} 23. Bc4 {[%clk 0:01:39.9]} 23... Kg7
{[%clk 0:01:14.1]} 24. f3 {[%clk 0:01:31.7]} 24... Bc6 {[%clk 0:00:58.3]} 25.
Ba2 {[%clk 0:01:19.8]} 25... Ncd7 {[%clk 0:00:54.4]} 26. Nc4 {[%clk 0:01:16.3]}
26... Rd5 {[%clk 0:00:44]} 27. Nxd5 {[%clk 0:01:15.3]} 27... Bxd5 {[%clk
0:00:43.6]} 28. e4 {[%clk 0:01:14.5]} 28... Bc6 {[%clk 0:00:44.2]} 29. Na5
{[%clk 0:01:13.4]} 29... Bb5+ {[%clk 0:00:42.7]} 30. Bc4 {[%clk 0:01:13.8]}
30... Bxc4+ {[%clk 0:00:38.7]} 31. Nxc4 {[%clk 0:01:14.7]} 31... b5 {[%clk
0:00:37.5]} 32. Na5 {[%clk 0:01:12.9]} 32... g4 {[%clk 0:00:37.1]} 33. Rc6
{[%clk 0:01:10.1]} 33... h5 {[%clk 0:00:31.5]} 34. Rxa6 {[%clk 0:01:08.6]} 34...
h4 {[%clk 0:00:31.7]} 35. Nc6 {[%clk 0:00:58.7]} 35... h3 {[%clk 0:00:29.5]} 36.
gxh3 {[%clk 0:00:58.9]} 36... gxf3+ {[%clk 0:00:27.8]} 37. Kxf3 {[%clk
0:00:59.8]} 37... Nxe4 {[%clk 0:00:25.3]} 38. Ra7 {[%clk 0:00:55.2]} 38... Ndf6
{[%clk 0:00:20]} 39. Nd8 {[%clk 0:00:54.9]} 39... Ng5+ {[%clk 0:00:19.7]} 40.
Kf4 {[%clk 0:00:51.8]} 40... Kg6 {[%clk 0:00:19.9]} 41. h4 {[%clk 0:00:49.4]}
41... Nd5+ {[%clk 0:00:19.9]} 42. Kg4 {[%clk 0:00:44.9]} 42... f5+ {[%clk
0:00:20.1]} 43. Kg3 {[%clk 0:00:42.7]} 43... Ne4+ {[%clk 0:00:20.5]} 44. Kg2
{[%clk 0:00:41.7]} 44... Kf6 {[%clk 0:00:16.8]} 45. Kf3 {[%clk 0:00:38]} 45...
Nd2+ {[%clk 0:00:16.4]} 46. Ke2 {[%clk 0:00:37.8]} 46... Nc4 {[%clk 0:00:16.5]}
47. b3 {[%clk 0:00:35.3]} 47... Ne5 {[%clk 0:00:12.2]} 48. a4 {[%clk 0:00:34.7]}
48... bxa4 {[%clk 0:00:07]} 49. bxa4 {[%clk 0:00:35.6]} 49... Ng6 {[%clk
0:00:05.2]} 50. a5 {[%clk 0:00:33.4]} 50... Nxh4 {[%clk 0:00:04.7]} 51. a6
{[%clk 0:00:34]} 51... Ng2 {[%clk 0:00:02.8]} 52. Rf7+ {[%clk 0:00:32.8]} 52...
Ke5 {[%clk 0:00:02.7]} 53. a7 {[%clk 0:00:33.1]} 53... Ngf4+ {[%clk 0:00:03.2]}
54. Kf3 {[%clk 0:00:33.1]} 54... Nb6 {[%clk 0:00:03]} 55. Nc6+ {[%clk
0:00:22.3]} 55... Kd6 {[%clk 0:00:03]} 56. Kxf4 {[%clk 0:00:22.9]} 56... Kxc6
{[%clk 0:00:03.5]} 57. h4 {[%clk 0:00:22.9]} 1-0

[Event "Late-Titled-Tuesday-Blitz-September-26-2023"]
[Site "Chess.com"]
[Date "2023.09.26"]
[Round "1"]
[White "dorpato"]
[Black "ErikRonka"]
[Result "1-0"]
[WhiteElo "2023"]
[BlackElo "2499"]
[TimeControl "180+1"]
[EndTime "14:08:07 PDT"]
[Termination "dorpato won by checkmate"]

1. e4 {[%clk 0:03:00.9]} 1... c5 {[%clk 0:02:08.3]} 2. Nc3 {[%clk 0:02:59.8]}
2... e6 {[%clk 0:02:06.2]} 3. g3 {[%clk 0:02:54.2]} 3... Nc6 {[%clk 0:02:01.5]}
4. Bg2 {[%clk 0:02:50.2]} 4... g6 {[%clk 0:02:01]} 5. d3 {[%clk 0:02:49.6]} 5...
Bg7 {[%clk 0:01:56.3]} 6. Be3 {[%clk 0:02:45.2]} 6... d6 {[%clk 0:01:51.1]} 7.
Qd2 {[%clk 0:02:35.8]} 7... Rb8 {[%clk 0:01:44.8]} 8. Nf3 {[%clk 0:02:28.2]}
8... Nd4 {[%clk 0:01:33.8]} 9. O-O {[%clk 0:02:22.2]} 9... b5 {[%clk 0:01:24.4]}
10. Rab1 {[%clk 0:02:19.9]} 10... b4 {[%clk 0:01:18.8]} 11. Ne2 {[%clk
0:02:19.2]} 11... e5 {[%clk 0:01:02.2]} 12. c3 {[%clk 0:02:12.7]} 12... Nxf3+
{[%clk 0:00:54.5]} 13. Bxf3 {[%clk 0:02:08.2]} 13... a5 {[%clk 0:00:51.2]} 14.
Bg2 {[%clk 0:02:07.7]} 14... Ne7 {[%clk 0:00:48.2]} 15. Bh6 {[%clk 0:02:04.5]}
15... Kf8 {[%clk 0:00:33.4]} 16. Bxg7+ {[%clk 0:01:57.9]} 16... Kxg7 {[%clk
0:00:34.3]} 17. f4 {[%clk 0:01:57.9]} 17... f6 {[%clk 0:00:32.2]} 18. h3 {[%clk
0:01:55.4]} 18... Rf8 {[%clk 0:00:24.9]} 19. g4 {[%clk 0:01:54]} 19... Ba6
{[%clk 0:00:21.2]} 20. h4 {[%clk 0:01:40.9]} 20... a4 {[%clk 0:00:19.2]} 21. f5
{[%clk 0:01:34.6]} 21... gxf5 {[%clk 0:00:14.9]} 22. exf5 {[%clk 0:01:28.7]}
22... d5 {[%clk 0:00:14.9]} 23. g5 {[%clk 0:01:22]} 23... Kh8 {[%clk 0:00:14.7]}
24. g6 {[%clk 0:01:13.8]} 24... Ng8 {[%clk 0:00:12.7]} 25. h5 {[%clk 0:01:06.6]}
25... Qe7 {[%clk 0:00:12]} 26. Bxd5 {[%clk 0:01:03]} 26... Rbd8 {[%clk
0:00:11.5]} 27. Bxg8 {[%clk 0:01:01.8]} 27... Rxg8 {[%clk 0:00:11.4]} 28. Qh6
{[%clk 0:00:59]} 28... Rxd3 {[%clk 0:00:09.5]} 29. Rf2 {[%clk 0:00:52.2]} 29...
Qg7 {[%clk 0:00:09.1]} 30. Qxg7+ {[%clk 0:00:50.6]} 30... Kxg7 {[%clk 0:00:10]}
31. Rg2 {[%clk 0:00:48.6]} 31... Rgd8 {[%clk 0:00:09.8]} 32. h6+ {[%clk
0:00:44.2]} 32... Kg8 {[%clk 0:00:09.4]} 33. cxb4 {[%clk 0:00:35.6]} 33... cxb4
{[%clk 0:00:09.1]} 34. Ng3 {[%clk 0:00:32]} 34... Rd2 {[%clk 0:00:08.8]} 35.
Rxd2 {[%clk 0:00:23.6]} 35... Rxd2 {[%clk 0:00:09.7]} 36. Ne4 {[%clk 0:00:23.4]}
36... Rd7 {[%clk 0:00:04.7]} 37. Nxf6+ {[%clk 0:00:23.5]} 37... Kh8 {[%clk
0:00:03.8]} 38. Nxd7 {[%clk 0:00:22.2]} 38... hxg6 {[%clk 0:00:04.7]} 39. fxg6
{[%clk 0:00:20.8]} 39... Bd3 {[%clk 0:00:05.6]} 40. g7+ {[%clk 0:00:19.3]} 40...
Kh7 {[%clk 0:00:05.7]} 41. Nf6+ {[%clk 0:00:19.7]} 41... Kxh6 {[%clk 0:00:06.6]}
42. g8=Q {[%clk 0:00:20.1]} 42... Bxb1 {[%clk 0:00:06.9]} 43. Qh8+ {[%clk
0:00:19.8]} 43... Kg5 {[%clk 0:00:06.6]} 44. Qg7+ {[%clk 0:00:20.4]} 44... Kf5
{[%clk 0:00:06.6]} 45. Nd7 {[%clk 0:00:20.7]} 45... Kf4 {[%clk 0:00:06.6]} 46.
Qxe5+ {[%clk 0:00:21.2]} 46... Kf3 {[%clk 0:00:05.8]} 47. Qe1 {[%clk 0:00:21.9]}
47... Be4 {[%clk 0:00:06.4]} 48. Qf2+ {[%clk 0:00:22.1]} 48... Kg4 {[%clk
0:00:06.3]} 49. Ne5+ {[%clk 0:00:22.7]} 49... Kg5 {[%clk 0:00:05.9]} 50. Qg3+
{[%clk 0:00:23]} 50... Kf5 {[%clk 0:00:06]} 51. Ng6 {[%clk 0:00:21.1]} 51... a3
{[%clk 0:00:05.8]} 52. bxa3 {[%clk 0:00:20.3]} 52... bxa3 {[%clk 0:00:05.2]} 53.
Qf4+ {[%clk 0:00:20.6]} 53... Kxg6 {[%clk 0:00:05]} 54. Qxe4+ {[%clk 0:00:21]}
54... Kg5 {[%clk 0:00:05.9]} 55. Kg2 {[%clk 0:00:21.4]} 55... Kh5 {[%clk
0:00:06.8]} 56. Qf4 {[%clk 0:00:20.6]} 56... Kg6 {[%clk 0:00:06.9]} 57. Qe5
{[%clk 0:00:20.6]} 57... Kh6 {[%clk 0:00:07.1]} 58. Qf5 {[%clk 0:00:20.6]} 58...
Kg7 {[%clk 0:00:06.7]} 59. Qe6 {[%clk 0:00:21.1]} 59... Kh7 {[%clk 0:00:06.8]}
60. Qf6 {[%clk 0:00:21.4]} 60... Kg8 {[%clk 0:00:06.9]} 61. Qe7 {[%clk
0:00:21.6]} 61... Kh8 {[%clk 0:00:06.2]} 62. Kg3 {[%clk 0:00:22.5]} 62... Kg8
{[%clk 0:00:06.8]} 63. Kg4 {[%clk 0:00:23.4]} 63... Kh8 {[%clk 0:00:07.6]} 64.
Kg5 {[%clk 0:00:24.3]} 64... Kg8 {[%clk 0:00:08.4]} 65. Kg6 {[%clk 0:00:24.9]}
65... Kh8 {[%clk 0:00:09.3]} 66. Qg7# {[%clk 0:00:25.5]} 1-0

[Event "Late-Titled-Tuesday-Blitz-September-26-2023"]
[Site "Chess.com"]
[Date "2023.09.26"]
[Round "1"]
[White "Goryachkina"]
[Black "GiorgianBarbosa"]
[Result "1-0"]
[WhiteElo "2671"]
[BlackElo "2373"]
[TimeControl "180+1"]
[EndTime "14:08:14 PDT"]
[Termination "Goryachkina won by checkmate"]

1. e4 {[%clk 0:02:59.2]} 1... c5 {[%clk 0:03:00.3]} 2. Nf3 {[%clk 0:02:59.1]}
2... g6 {[%clk 0:03:01.2]} 3. c4 {[%clk 0:02:56.8]} 3... Bg7 {[%clk 0:03:01.2]}
4. d4 {[%clk 0:02:56.6]} 4... cxd4 {[%clk 0:03:02.1]} 5. Nxd4 {[%clk 0:02:56.5]}
5... Nc6 {[%clk 0:03:03]} 6. Be3 {[%clk 0:02:55.5]} 6... Nf6 {[%clk 0:03:03.2]}
7. Nc3 {[%clk 0:02:54.9]} 7... O-O {[%clk 0:03:03.8]} 8. Be2 {[%clk 0:02:54.7]}
8... d6 {[%clk 0:03:04.7]} 9. O-O {[%clk 0:02:51.6]} 9... Nxd4 {[%clk
0:03:04.9]} 10. Bxd4 {[%clk 0:02:51.4]} 10... Bd7 {[%clk 0:03:05.8]} 11. f3
{[%clk 0:02:49.5]} 11... Bc6 {[%clk 0:03:06]} 12. Qd2 {[%clk 0:02:48.5]} 12...
Nd7 {[%clk 0:03:06.5]} 13. Bf2 {[%clk 0:02:48.6]} 13... a5 {[%clk 0:03:06.5]}
14. b3 {[%clk 0:02:34.3]} 14... Nc5 {[%clk 0:03:06.9]} 15. Rfc1 {[%clk
0:02:29.6]} 15... e6 {[%clk 0:03:02.5]} 16. Rab1 {[%clk 0:02:27.6]} 16... Qe7
{[%clk 0:02:46.6]} 17. Bd1 {[%clk 0:02:08.6]} 17... f5 {[%clk 0:02:38.8]} 18.
exf5 {[%clk 0:02:07.6]} 18... Rxf5 {[%clk 0:02:39.7]} 19. Bc2 {[%clk 0:02:06]}
19... Rh5 {[%clk 0:02:39.2]} 20. Ne2 {[%clk 0:01:57.4]} 20... Bh6 {[%clk
0:02:22.1]} 21. Be3 {[%clk 0:01:38.6]} 21... Qh4 {[%clk 0:02:19.1]} 22. Bxh6
{[%clk 0:01:22.2]} 22... Rxh6 {[%clk 0:01:35.7]} 23. Qxd6 {[%clk 0:01:16.7]}
23... Rf8 {[%clk 0:01:07.3]} 24. Qg3 {[%clk 0:01:01]} 24... Qh5 {[%clk
0:00:54.2]} 25. Rd1 {[%clk 0:00:50.1]} 25... e5 {[%clk 0:00:48.5]} 26. Nc3
{[%clk 0:00:41.8]} 26... Bxf3 {[%clk 0:00:42.1]} 27. Rf1 {[%clk 0:00:39]} 27...
Be2 {[%clk 0:00:30]} 28. Rxf8+ {[%clk 0:00:37.3]} 28... Kxf8 {[%clk 0:00:30.9]}
29. Qf2+ {[%clk 0:00:34.9]} 29... Kg7 {[%clk 0:00:23.9]} 30. Qxc5 {[%clk
0:00:28.5]} 30... Qxh2+ {[%clk 0:00:19]} 31. Kf2 {[%clk 0:00:28.8]} 31... Bg4
{[%clk 0:00:10.8]} 32. Qe3 {[%clk 0:00:25.7]} 32... g5 {[%clk 0:00:06.8]} 33.
Qxg5+ {[%clk 0:00:24.1]} 33... Kf7 {[%clk 0:00:07.2]} 34. Qxg4 {[%clk
0:00:20.7]} 34... Rf6+ {[%clk 0:00:07.7]} 35. Bf5 {[%clk 0:00:21]} 35... Qh6
{[%clk 0:00:05.6]} 36. Rf1 {[%clk 0:00:20.2]} 36... Qd2+ {[%clk 0:00:05.5]} 37.
Ne2 {[%clk 0:00:20.3]} 37... e4 {[%clk 0:00:05]} 38. Kg1 {[%clk 0:00:20.1]}
38... e3 {[%clk 0:00:04.8]} 39. Qh5+ {[%clk 0:00:19.8]} 39... Ke7 {[%clk
0:00:04.8]} 40. Qxh7+ {[%clk 0:00:19.7]} 40... Kd6 {[%clk 0:00:04.9]} 41. Qd7+
{[%clk 0:00:19.9]} 41... Ke5 {[%clk 0:00:05.8]} 42. Qxd2 {[%clk 0:00:19.3]}
42... exd2 {[%clk 0:00:06.7]} 43. Rd1 {[%clk 0:00:18.8]} 43... Rxf5 {[%clk
0:00:04.6]} 44. Rxd2 {[%clk 0:00:19.2]} 44... Ke4 {[%clk 0:00:05.1]} 45. Ng3+
{[%clk 0:00:18.9]} 45... Ke3 {[%clk 0:00:04.5]} 46. Re2+ {[%clk 0:00:19]} 46...
Kd3 {[%clk 0:00:04.1]} 47. Nxf5 {[%clk 0:00:19.5]} 47... Kxe2 {[%clk 0:00:04.7]}
48. g4 {[%clk 0:00:20]} 48... Kd3 {[%clk 0:00:04.4]} 49. g5 {[%clk 0:00:20.5]}
49... Kc3 {[%clk 0:00:05.2]} 50. g6 {[%clk 0:00:21]} 50... Kb2 {[%clk
0:00:06.1]} 51. g7 {[%clk 0:00:21.3]} 51... Kxa2 {[%clk 0:00:07]} 52. g8=Q
{[%clk 0:00:21.9]} 52... Kxb3 {[%clk 0:00:07.9]} 53. c5+ {[%clk 0:00:22.5]}
53... Kb2 {[%clk 0:00:08]} 54. Qd5 {[%clk 0:00:22.6]} 54... a4 {[%clk
0:00:08.9]} 55. Qxb7+ {[%clk 0:00:23]} 55... Ka1 {[%clk 0:00:08.7]} 56. Qa6
{[%clk 0:00:23.3]} 56... a3 {[%clk 0:00:09.6]} 57. Qxa3+ {[%clk 0:00:23.5]}
57... Kb1 {[%clk 0:00:10.5]} 58. c6 {[%clk 0:00:23.5]} 58... Kc2 {[%clk
0:00:11.4]} 59. Qc5+ {[%clk 0:00:23.5]} 59... Kb1 {[%clk 0:00:11.6]} 60. c7
{[%clk 0:00:24.1]} 60... Kb2 {[%clk 0:00:12.3]} 61. c8=Q {[%clk 0:00:24.6]}
61... Ka1 {[%clk 0:00:13.2]} 62. Qa6+ {[%clk 0:00:24.1]} 62... Kb2 {[%clk
0:00:13.8]} 63. Qb7+ {[%clk 0:00:24.6]} 63... Ka2 {[%clk 0:00:13.1]} 64. Qa5#
{[%clk 0:00:25.1]} 1-0

[Event "Late-Titled-Tuesday-Blitz-September-26-2023"]
[Site "Chess.com"]
[Date "2023.09.26"]
[Round "1"]
[White "aranibos"]
[Black "aNaartjieZA"]
[Result "1/2-1/2"]
[WhiteElo "2298"]
[BlackElo "2595"]
[TimeControl "180+1"]
[EndTime "14:08:22 PDT"]
[Termination "Game drawn - insufficient material"]

1. d4 {[%clk 0:02:58.2]} 1... Nf6 {[%clk 0:02:59.5]} 2. Nf3 {[%clk 0:02:57.5]}
2... c5 {[%clk 0:02:59.6]} 3. d5 {[%clk 0:02:56.5]} 3... d6 {[%clk 0:02:59.7]}
4. c4 {[%clk 0:02:56.4]} 4... e5 {[%clk 0:02:59.8]} 5. Nc3 {[%clk 0:02:55.3]}
5... Nbd7 {[%clk 0:02:59.6]} 6. e4 {[%clk 0:02:55.3]} 6... Be7 {[%clk
0:02:59.9]} 7. Bd3 {[%clk 0:02:55.6]} 7... Nf8 {[%clk 0:02:59.8]} 8. a3 {[%clk
0:02:56.2]} 8... Ng6 {[%clk 0:02:58.5]} 9. Rb1 {[%clk 0:02:53.9]} 9... Nh5
{[%clk 0:02:55.6]} 10. O-O {[%clk 0:02:50.9]} 10... Nhf4 {[%clk 0:02:54.4]} 11.
b4 {[%clk 0:02:48.7]} 11... b6 {[%clk 0:02:54]} 12. g3 {[%clk 0:02:41.1]} 12...
Nxd3 {[%clk 0:02:46.3]} 13. Qxd3 {[%clk 0:02:40.4]} 13... Bh3 {[%clk 0:02:46.3]}
14. Re1 {[%clk 0:02:40]} 14... h5 {[%clk 0:02:46.1]} 15. bxc5 {[%clk 0:02:36]}
15... bxc5 {[%clk 0:02:45.7]} 16. Bd2 {[%clk 0:02:23.6]} 16... h4 {[%clk
0:02:44.7]} 17. Ne2 {[%clk 0:02:15.1]} 17... Qd7 {[%clk 0:02:26.7]} 18. Rb5
{[%clk 0:02:00.1]} 18... f5 {[%clk 0:02:15.6]} 19. exf5 {[%clk 0:01:52]} 19...
Bxf5 {[%clk 0:02:14.6]} 20. Qb3 {[%clk 0:01:52.4]} 20... Be4 {[%clk 0:02:00.9]}
21. Nf4 {[%clk 0:01:15.4]} 21... Bxf3 {[%clk 0:01:25.9]} 22. Nxg6 {[%clk
0:01:11.6]} 22... e4 {[%clk 0:01:26.1]} 23. Rb7 {[%clk 0:00:59.2]} 23... Qh3
{[%clk 0:01:20.3]} 24. Rxe7+ {[%clk 0:00:59.1]} 24... Kd8 {[%clk 0:01:20.4]} 25.
Nf4 {[%clk 0:00:57.6]} 25... hxg3 {[%clk 0:00:58.3]} 26. fxg3 {[%clk 0:00:57.3]}
26... Qxh2+ {[%clk 0:00:57.2]} 27. Kf1 {[%clk 0:00:57.8]} 27... Qxd2 {[%clk
0:00:26.9]} 28. Rd7+ {[%clk 0:00:47.7]} 28... Ke8 {[%clk 0:00:25.9]} 29. Qxf3
{[%clk 0:00:44.8]} 29... Qxe1+ {[%clk 0:00:25.7]} 30. Kxe1 {[%clk 0:00:42.6]}
30... exf3 {[%clk 0:00:26]} 31. Rxg7 {[%clk 0:00:41]} 31... Rh2 {[%clk 0:00:20]}
32. Rg8+ {[%clk 0:00:36.7]} 32... Kf7 {[%clk 0:00:20.4]} 33. Rxa8 {[%clk
0:00:37]} 33... Ra2 {[%clk 0:00:19.8]} 34. Rxa7+ {[%clk 0:00:35.4]} 34... Kf6
{[%clk 0:00:20.3]} 35. Nd3 {[%clk 0:00:30]} 35... Kf5 {[%clk 0:00:20.1]} 36. Nf2
{[%clk 0:00:20.6]} 36... Ra1+ {[%clk 0:00:19.5]} 37. Kd2 {[%clk 0:00:20.6]}
37... Ra2+ {[%clk 0:00:19.8]} 38. Ke3 {[%clk 0:00:21.2]} 38... Re2+ {[%clk
0:00:19.5]} 39. Kxf3 {[%clk 0:00:21.4]} 39... Rc2 {[%clk 0:00:20.4]} 40. Rf7+
{[%clk 0:00:19.9]} 40... Kg6 {[%clk 0:00:20.5]} 41. Rd7 {[%clk 0:00:20.2]} 41...
Rc3+ {[%clk 0:00:20.4]} 42. Kg4 {[%clk 0:00:18.8]} 42... Rxc4+ {[%clk
0:00:20.7]} 43. Kh3 {[%clk 0:00:17.8]} 43... Rc3 {[%clk 0:00:21]} 44. Rxd6+
{[%clk 0:00:18]} 44... Kf5 {[%clk 0:00:21.5]} 45. Rf6+ {[%clk 0:00:17.1]} 45...
Ke5 {[%clk 0:00:21.1]} 46. Rg6 {[%clk 0:00:15.6]} 46... Kxd5 {[%clk 0:00:21.3]}
47. Ng4 {[%clk 0:00:15.5]} 47... Rxa3 {[%clk 0:00:20.7]} 48. Rg5+ {[%clk
0:00:15.2]} 48... Kc6 {[%clk 0:00:20.5]} 49. Nf6 {[%clk 0:00:15.1]} 49... Rf3
{[%clk 0:00:19.9]} 50. Ne4 {[%clk 0:00:14.9]} 50... c4 {[%clk 0:00:20.2]} 51.
Rc5+ {[%clk 0:00:14.9]} 51... Kd7 {[%clk 0:00:20.6]} 52. Rxc4 {[%clk 0:00:15.3]}
52... Rf8 {[%clk 0:00:20.7]} 53. Ra4 {[%clk 0:00:15.5]} 53... Ke6 {[%clk
0:00:21]} 54. Kg2 {[%clk 0:00:15.9]} 54... Ke5 {[%clk 0:00:21.4]} 55. Nc5 {[%clk
0:00:16.2]} 55... Kd5 {[%clk 0:00:21.1]} 56. Nd3 {[%clk 0:00:16.5]} 56... Rg8
{[%clk 0:00:21.4]} 57. Nf4+ {[%clk 0:00:16.9]} 57... Ke5 {[%clk 0:00:21.9]} 58.
Ra5+ {[%clk 0:00:17.4]} 58... Ke4 {[%clk 0:00:22.3]} 59. Ra4+ {[%clk 0:00:17.5]}
59... Kf5 {[%clk 0:00:22.7]} 60. Ra5+ {[%clk 0:00:17.9]} 60... Ke4 {[%clk
0:00:22.8]} 61. Ra4+ {[%clk 0:00:17.8]} 61... Ke3 {[%clk 0:00:23.3]} 62. Nd5+
{[%clk 0:00:15.8]} 62... Kd3 {[%clk 0:00:23.5]} 63. Rf4 {[%clk 0:00:15.4]} 63...
Rg5 {[%clk 0:00:22.7]} 64. Nf6 {[%clk 0:00:15.6]} 64... Ke3 {[%clk 0:00:22.1]}
65. Ng4+ {[%clk 0:00:15.6]} 65... Ke2 {[%clk 0:00:22.4]} 66. Nf2 {[%clk
0:00:14.4]} 66... Ke3 {[%clk 0:00:22.3]} 67. Rf6 {[%clk 0:00:11.1]} 67... Kd4
{[%clk 0:00:21.9]} 68. g4 {[%clk 0:00:11.2]} 68... Ke5 {[%clk 0:00:21.7]} 69.
Rf4 {[%clk 0:00:10.9]} 69... Kxf4 {[%clk 0:00:21.4]} 70. Nh3+ {[%clk 0:00:11.3]}
70... Kxg4 {[%clk 0:00:21]} 71. Nxg5 {[%clk 0:00:11.8]} 1/2-1/2